bitfinex/quotes_BTCUSD_20220307
["timestamp","ask_amount","ask_price","bid_price","bid_amount"]
[1646671001444,0.0638229,39309.0,39308.0,0.366703]
[1646671001995,0.0638229,39309.0,39308.0,1.139403]
[1646671002196,0.2511,39325.0,39308.0,1.139403]
[1646671002197,0.1511,39325.0,39313.0,0.7727]
[1646671002402,0.0011,39325.0,39321.0,0.20971697]
[1646671002598,0.0011,39325.0,39322.0,0.01587]
[1646671002796,0.277155,39323.0,39322.0,0.06667]
[1646671002996,0.277155,39323.0,39322.0,0.0508]
[1646671003195,0.277155,39323.0,39315.0,0.015877]
[1646671003797,0.15,39322.0,39316.0,0.18186159]
[1646671004001,0.190772,39321.0,39317.0,0.06668]
[1646671004196,0.24832462,39320.0,39317.0,0.06668]
[1646671004495,0.46192062,39320.0,39317.0,0.0508]
[1646671004897,0.31211596,39320.0,39317.0,0.0508]
[1646671005295,0.15,39318.0,39317.0,0.0508]
[1646671007045,0.063608,39317.0,39312.0,0.08572852]
[1646671007243,0.25747453,39317.0,39312.0,0.08172852]
[1646671007446,0.15,39314.0,39312.0,0.08172852]
[1646671007943,0.397544,39313.0,39312.0,0.08172852]
[1646671008145,0.15,39314.0,39312.0,0.08172852]
[1646671009805,0.26372696,39313.0,39312.0,0.08172852]
[1646671010398,0.15,39314.0,39312.0,0.08172852]
[1646671010600,0.397544,39313.0,39312.0,0.08172852]
[1646671010798,0.15017687,39314.0,39312.0,0.08172852]
[1646671011203,0.397544,39313.0,39312.0,0.08172852]
[1646671011400,0.15017687,39314.0,39312.0,0.08172852]
[1646671011804,0.15,39314.0,39312.0,0.08172852]
[1646671013644,0.397544,39313.0,39312.0,0.08172852]
[1646671013840,0.15,39314.0,39312.0,0.08172852]
[1646671014041,0.397544,39313.0,39312.0,0.08172852]
[1646671014243,0.151,39314.0,39312.0,0.08172852]
[1646671014451,0.15117623,39314.0,39313.0,0.3]
[1646671014650,0.15117623,39314.0,39312.0,0.08172852]
[1646671014846,0.15117623,39314.0,39313.0,0.315891]
[1646671015248,0.15,39314.0,39313.0,0.315891]
[1646671015443,0.15,39314.0,39313.0,0.54158317]
[1646671016246,0.145,39314.0,39313.0,0.54158317]
[1646671016446,0.063616,39315.0,39313.0,0.54158317]
[1646671016648,0.063616,39315.0,39314.0,0.31589]
[1646671016846,0.06379223,39315.0,39314.0,0.31589]
[1646671017096,0.00017623,39315.0,39314.0,1.08859]
[1646671017694,0.145,39324.0,39314.0,1.13939]
[1646671017898,0.145,39324.0,39317.0,0.06358]
[1646671018094,0.272165,39324.0,39318.0,0.366677]
[1646671018793,0.272165,39324.0,39319.0,0.015876]
[1646671018794,0.145,39322.0,39319.0,0.015876]
[1646671019092,0.127165,39324.0,39318.0,0.3508]
[1646671019292,0.127165,39324.0,39319.0,0.015875]
[1646671019293,0.00017634,39323.0,39319.0,0.015875]
[1646671019494,0.145,39322.0,39319.0,0.079464]
[1646671019994,0.00017634,39323.0,39320.0,0.3]
[1646671020192,0.272165,39324.0,39320.0,0.3]
[1646671020193,0.127165,39324.0,39320.0,0.3]
[1646671020393,0.00017634,39322.0,39320.0,0.3]
[1646671020592,0.00017634,39322.0,39321.0,0.015874]
[1646671020845,0.00017634,39322.0,39321.0,0.079459]
[1646671021346,0.145,39322.0,39313.0,0.427184]
[1646671021550,0.145,39318.0,39313.0,0.3]
[1646671021748,0.145,39318.0,39312.0,0.08172852]
[1646671022144,0.145,39318.0,39313.0,0.3]
[1646671022346,0.145,39318.0,39312.0,0.08172852]
[1646671022744,0.145,39318.0,39313.0,0.3]
[1646671022745,0.00017632,39317.0,39313.0,0.3]
[1646671022945,0.06378132,39317.0,39313.0,0.3]
[1646671023747,0.063605,39317.0,39313.0,0.363597]
[1646671023944,0.06378132,39317.0,39314.0,0.015884]
[1646671024145,0.06378132,39317.0,39315.0,0.015887]
[1646671024343,0.06378132,39317.0,39313.0,0.363597]
[1646671024997,0.063605,39317.0,39314.0,0.015888]
[1646671025194,0.06378132,39317.0,39313.0,0.363597]
[1646671026094,0.063605,39317.0,39314.0,0.015888]
[1646671026294,0.06378132,39317.0,39314.0,0.015888]
[1646671026496,0.00017632,39317.0,39315.0,0.127171]
[1646671026694,0.00017632,39317.0,39316.0,0.315885]
[1646671027396,0.145,39322.0,39316.0,0.3]
[1646671027598,0.00017632,39318.0,39317.0,0.18169986]
[1646671027794,0.00017632,39318.0,39316.0,0.3]
[1646671027996,0.24401554,39315.0,39313.0,0.3]
[1646671028245,0.24401554,39315.0,39314.0,0.015884]
[1646671028946,0.24401554,39315.0,39313.0,0.3]
[1646671029248,0.24401554,39315.0,39312.0,0.08172852]
[1646671029447,0.145,39314.0,39312.0,0.08172852]
[1646671033101,0.24419186,39315.0,39312.0,0.08172852]
[1646671033298,0.24401554,39315.0,39312.0,0.08172852]
[1646671033700,0.24419186,39315.0,39312.0,0.44532652]
[1646671033898,0.145,39313.0,39312.0,0.08172852]
[1646671034498,0.38510624,39313.0,39312.0,0.08172852]
[1646671034900,0.57834883,39313.0,39312.0,0.08172852]
[1646671035302,0.97589283,39313.0,39312.0,0.08172852]
[1646671035504,0.16705906,39308.0,39300.0,0.5261]
[1646671035769,0.145,39306.0,39300.0,0.3]
[1646671035967,0.46600082,39304.0,39297.0,0.3]
[1646671036171,0.145,39306.0,39298.0,0.015916]
[1646671036368,0.145,39306.0,39298.0,0.015919]
[1646671036571,0.145,39306.0,39297.0,0.3]
[1646671036572,0.145,39304.0,39297.0,0.3]
[1646671036770,0.145,39304.0,39298.0,0.01592]
[1646671037170,0.33431172,39304.0,39298.0,0.01592]
[1646671037369,0.00017632,39302.0,39298.0,0.01592]
[1646671037570,0.00017632,39302.0,39299.0,0.063621]
[1646671037774,0.00017632,39302.0,39300.0,0.31592]
[1646671038176,0.063626,39303.0,39300.0,0.31592]
[1646671038370,0.06380232,39303.0,39300.0,0.01592]
[1646671038972,0.06380232,39303.0,39300.0,0.31592]
[1646671038973,0.00017632,39303.0,39300.0,0.31592]
[1646671039372,0.145,39306.0,39300.0,0.31592]
[1646671039804,0.00017633,39303.0,39301.0,0.1840001]
[1646671040103,0.00017633,39303.0,39302.0,0.23737603]
[1646671040402,0.00017633,39303.0,39302.0,0.315916]
[1646671040603,0.38719493,39306.0,39299.0,0.3]
[1646671040809,0.00017633,39304.0,39300.0,0.015915]
[1646671041409,0.00017633,39304.0,39300.0,0.2178623]
[1646671041608,0.00017633,39304.0,39302.0,0.015916]
[1646671041805,0.145,39306.0,39301.0,0.3]
[1646671042007,0.00017633,39304.0,39301.0,0.3]
[1646671042206,0.00017633,39304.0,39302.0,0.015913]
[1646671043007,0.145,39306.0,39302.0,0.015913]
[1646671043253,0.00017633,39305.0,39302.0,0.015913]
[1646671044255,0.145,39306.0,39301.0,0.3]
[1646671044456,0.00017633,39305.0,39301.0,0.3]
[1646671044655,0.00017633,39305.0,39302.0,0.015913]
[1646671044856,0.00017633,39305.0,39301.0,0.3]
[1646671045058,0.145,39303.0,39301.0,0.3]
[1646671045256,0.145,39303.0,39297.0,0.003]
[1646671045657,0.02532,39306.0,39298.0,0.015922]
[1646671045658,0.145,39301.0,39298.0,0.015922]
[1646671046257,0.145,39301.0,39295.0,0.3]
[1646671046467,0.23913678,39303.0,39294.0,0.1925875]
[1646671046468,0.145,39299.0,39294.0,0.1925875]
[1646671046658,0.145,39299.0,39295.0,0.315925]
[1646671046861,1.17102892,39311.0,39296.0,0.06362]
[1646671046862,0.9642,39311.0,39296.0,0.06362]
[1646671047102,0.9642,39311.0,39297.0,0.315923]
[1646671047103,0.00017633,39301.0,39297.0,0.315923]
[1646671047300,0.00017633,39301.0,39298.0,0.127225]
[1646671047500,0.00017633,39301.0,39300.0,0.4104272]
[1646671047701,0.00017633,39301.0,39300.0,0.7263472]
[1646671047900,0.145,39304.0,39300.0,0.4263472]
[1646671048102,0.00017633,39302.0,39301.0,0.015917]
[1646671048901,0.00017633,39302.0,39301.0,0.315917]
[1646671049102,0.145,39304.0,39301.0,0.015917]
[1646671049303,0.145,39302.0,39300.0,0.50647894]
[1646671049504,0.145,39304.0,39301.0,0.315918]
[1646671049705,0.37124754,39315.0,39301.0,0.43033]
[1646671049706,0.735,39311.0,39301.0,0.43033]
[1646671049904,0.145,39307.0,39301.0,0.43033]
[1646671050406,0.145,39307.0,39301.0,0.4303272]
[1646671050604,0.145,39307.0,39306.0,0.39526108]
[1646671050848,0.145,39307.0,39306.0,0.29612643]
[1646671051051,0.145,39307.0,39306.0,0.130312]
[1646671051448,0.145,39307.0,39306.0,0.114405]
[1646671051949,0.145,39307.0,39306.0,0.0508]
[1646671054810,0.14,39307.0,39306.0,0.0508]
[1646671055710,0.41244361,39307.0,39306.0,0.0508]
[1646671055911,0.73776361,39307.0,39299.0,0.01272]
[1646671056111,0.02532,39305.0,39295.0,0.51324919]
[1646671056312,0.02532,39305.0,39292.0,0.21781188]
[1646671056313,0.14,39298.0,39294.0,0.1925875]
[1646671056514,0.14,39298.0,39292.0,0.2053075]
[1646671056911,0.14,39298.0,39294.0,0.18551542]
[1646671057711,0.203635,39298.0,39294.0,0.18551542]
[1646671057911,0.14,39298.0,39295.0,0.01593]
[1646671058115,0.00017368,39299.0,39295.0,0.01593]
[1646671058549,0.14,39304.0,39303.0,0.21832143]
[1646671058751,0.14,39304.0,39301.0,0.02975868]
[1646671058752,0.33416838,39302.0,39301.0,0.02975868]
[1646671059057,0.33416838,39302.0,39301.0,0.19042496]
[1646671059653,0.33416838,39302.0,39301.0,0.36871663]
[1646671059849,0.33416838,39302.0,39301.0,0.43232663]
[1646671060049,0.33416838,39302.0,39301.0,0.02975868]
[1646671060449,0.33416838,39302.0,39301.0,0.01384368]
[1646671061359,1.0752608,39302.0,39301.0,0.01384368]
[1646671061851,0.47416838,39302.0,39301.0,0.01384368]
[1646671062304,0.47416838,39302.0,39301.0,0.00384368]
[1646671065307,0.33416838,39302.0,39301.0,0.06746068]
[1646671065508,0.33416838,39302.0,39301.0,0.08337868]
[1646671065960,0.33416838,39302.0,39301.0,0.13337868]
[1646671068060,0.33416838,39302.0,39301.0,0.18417868]
[1646671069063,0.33416838,39302.0,39301.0,0.24842434]
[1646671069367,0.33416838,39302.0,39301.0,1.04644434]
[1646671069613,0.24401554,39315.0,39303.0,0.7727]
[1646671069614,0.38401554,39315.0,39303.0,0.7727]
[1646671069812,0.38401554,39315.0,39305.0,0.836299]
[1646671070012,0.38401554,39315.0,39306.0,0.066701]
[1646671070315,0.38401554,39315.0,39314.0,0.01589]
[1646671070514,0.38401554,39315.0,39314.0,0.06669]
[1646671071013,0.38401554,39315.0,39314.0,0.0508]
[1646671071412,0.38401554,39315.0,39314.0,0.066689]
[1646671071612,0.38401554,39315.0,39314.0,0.0508]
[1646671072213,0.38601554,39315.0,39314.0,0.0508]
[1646671072413,0.38601554,39315.0,39314.0,0.066689]
[1646671072814,0.38601554,39315.0,39314.0,0.0508]
[1646671073462,0.38401554,39315.0,39314.0,0.0508]
[1646671074364,0.48391554,39315.0,39314.0,0.0508]
[1646671074567,0.38401554,39315.0,39314.0,0.05022188]
[1646671075364,0.20682892,39323.0,39315.0,1.315888]
[1646671075566,0.0011,39325.0,39317.0,0.015878]
[1646671075766,0.0011,39325.0,39318.0,0.0508]
[1646671075965,0.0011,39325.0,39319.0,0.315875]
[1646671076166,0.0011,39325.0,39321.0,0.015873]
[1646671076167,0.063578,39324.0,39321.0,0.015873]
[1646671076368,0.063578,39324.0,39322.0,0.0508]
[1646671076566,0.063578,39324.0,39323.0,0.01587]
[1646671076766,0.063578,39324.0,39323.0,0.0508]
[1646671077006,0.063578,39324.0,39323.0,0.066669]
[1646671077405,0.063578,39324.0,39323.0,0.366669]
[1646671077609,0.0011,39325.0,39323.0,0.493817]
[1646671077805,0.0011,39325.0,39324.0,0.315867]
[1646671078105,0.01129,39325.0,39324.0,0.366667]
[1646671078307,0.01129,39325.0,39324.0,0.066667]
[1646671078604,0.0011,39325.0,39324.0,0.0508]
[1646671079414,0.398644,39325.0,39324.0,0.0508]
[1646671080206,0.58354432,39325.0,39324.0,0.0508]
[1646671080408,0.02532,39324.0,39318.0,0.0508]
[1646671080753,0.14,39319.0,39316.0,0.22784979]
[1646671080953,0.14,39319.0,39318.0,0.0508]
[1646671081553,0.203606,39319.0,39318.0,0.0508]
[1646671081951,0.203606,39319.0,39318.0,0.066682]
[1646671082653,0.203606,39319.0,39318.0,0.0508]
[1646671083856,0.203606,39319.0,39317.0,0.063592]
[1646671085011,0.203606,39319.0,39316.0,0.17704979]
[1646671085408,0.203606,39319.0,39317.0,0.015882]
[1646671085610,0.203606,39319.0,39317.0,0.315882]
[1646671086010,0.213796,39319.0,39317.0,0.379473]
[1646671086207,0.213796,39319.0,39317.0,0.079473]
[1646671086208,0.073796,39319.0,39317.0,0.079473]
[1646671086413,0.073796,39319.0,39317.0,0.379473]
[1646671086414,0.063606,39319.0,39317.0,0.379473]
[1646671086613,0.063606,39319.0,39318.0,0.3]
[1646671086912,0.00864066,39319.0,39318.0,0.31588]
[1646671088757,0.304375,39333.0,39319.0,0.86588]
[1646671088955,0.304375,39333.0,39322.0,0.06358]
[1646671089152,0.05,39332.0,39323.0,0.3]
[1646671089552,0.063581,39330.0,39323.0,0.3]
[1646671089753,0.063581,39330.0,39325.0,0.15961833]
[1646671090155,0.00020902,39328.0,39325.0,0.15961833]
[1646671090753,0.06378702,39328.0,39325.0,0.15961833]
[1646671091153,0.063578,39328.0,39325.0,0.15961833]
[1646671091354,0.06378702,39328.0,39325.0,0.15961833]
[1646671091755,0.06378702,39328.0,39326.0,0.315863]
[1646671092007,0.06378702,39328.0,39327.0,0.015861]
[1646671092207,0.063578,39328.0,39327.0,0.015861]
[1646671093210,0.12736502,39329.0,39327.0,0.015861]
[1646671093512,0.12736502,39329.0,39323.0,0.31271]
[1646671093513,0.30190423,39329.0,39323.0,0.31271]
[1646671093708,0.010189,39328.0,39323.0,0.01271]
[1646671093906,0.57049638,39329.0,39323.0,0.01271]
[1646671094107,0.17250847,39325.0,39322.0,0.01271]
[1646671094410,0.127193,39324.0,39319.0,0.01271]
[1646671094807,0.16517929,39323.0,39319.0,0.015865]
[1646671095007,0.00020902,39323.0,39318.0,0.002]
[1646671095207,0.24676865,39323.0,39318.0,0.002]
[1646671095412,0.31036165,39323.0,39315.0,0.01271]
[1646671095609,0.31036165,39323.0,39316.0,0.015877]
[1646671095864,0.31036165,39323.0,39315.0,0.01271]
[1646671096064,0.31015263,39323.0,39315.0,0.01271]
[1646671096264,0.18535405,39320.0,39313.0,0.01271]
[1646671096466,0.31254305,39320.0,39313.0,0.015882]
[1646671096663,0.31254305,39320.0,39312.0,0.01271]
[1646671097267,0.20125142,39319.0,39312.0,0.01271]
[1646671097463,0.00020902,39318.0,39313.0,0.079481]
[1646671097664,0.00020902,39318.0,39313.0,0.063595]
[1646671098465,0.26484642,39319.0,39313.0,0.063595]
[1646671098665,0.00020902,39318.0,39313.0,0.063595]
[1646671098865,0.00020902,39318.0,39314.0,0.3]
[1646671099515,0.063595,39319.0,39314.0,0.3]
[1646671099820,0.00020902,39318.0,39314.0,0.3]
[1646671100216,0.00020902,39318.0,39313.0,0.063595]
[1646671100413,0.00020902,39318.0,39314.0,0.3]
[1646671100816,0.063595,39319.0,39316.0,0.26143625]
[1646671101015,0.00020902,39318.0,39317.0,0.315882]
[1646671101417,0.00020902,39318.0,39317.0,0.54484716]
[1646671102019,0.063595,39319.0,39317.0,0.59564716]
[1646671102215,0.06380402,39319.0,39318.0,0.315881]
[1646671102415,0.06380402,39319.0,39318.0,0.366681]
[1646671103019,0.05,39333.0,39327.0,0.19175815]
[1646671103260,0.05,39333.0,39328.0,0.315858]
[1646671103458,0.05,39333.0,39324.0,0.3]
[1646671103658,0.05,39333.0,39325.0,0.015859]
[1646671103854,0.06357,39329.0,39325.0,0.015859]
[1646671104055,0.24488631,39329.0,39323.0,0.05]
[1646671104256,0.29307242,39326.0,39320.0,0.002]
[1646671104456,0.29307242,39326.0,39316.0,0.1]
[1646671104457,0.16754744,39321.0,39314.0,0.54119723]
[1646671104660,0.16754744,39321.0,39313.0,0.1]
[1646671104859,0.697537,39320.0,39315.0,0.19327265]
[1646671105058,1.45,39319.0,39307.0,0.20485533]
[1646671105258,0.29474344,39321.0,39310.0,0.06483738]
[1646671105458,0.29474344,39321.0,39307.0,0.25632323]
[1646671105659,0.24973735,39318.0,39309.0,0.17366535]
[1646671105863,0.063598,39316.0,39310.0,0.127201]
[1646671107301,0.063598,39316.0,39310.0,0.063602]
[1646671108100,0.063598,39316.0,39308.0,0.063605]
[1646671108703,0.063598,39316.0,39308.0,0.127207]
[1646671109102,0.063598,39316.0,39309.0,0.127192]
[1646671109301,0.063598,39316.0,39313.0,0.19138327]
[1646671109501,0.063598,39316.0,39313.0,0.25498027]
[1646671111849,0.063598,39316.0,39313.0,0.19138327]
[1646671112250,0.063598,39316.0,39309.0,0.127192]
[1646671112650,0.07379,39316.0,39308.0,0.25632323]
[1646671112874,0.07379,39316.0,39308.0,0.30632323]
[1646671113251,0.07379,39316.0,39311.0,0.16490515]
[1646671113451,0.063598,39316.0,39311.0,0.16490515]
[1646671114253,0.065598,39316.0,39311.0,0.16490515]
[1646671115111,0.01664379,39316.0,39314.0,0.20491377]
[1646671115411,0.01664379,39316.0,39313.0,0.26903323]
[1646671115611,0.01464379,39316.0,39314.0,0.05584183]
[1646671115810,0.01464379,39316.0,39314.0,0.37574906]
[1646671116212,0.01464379,39316.0,39314.0,0.25632323]
[1646671116410,0.01464379,39316.0,39315.0,0.20487398]
[1646671116616,0.01464379,39316.0,39314.0,0.20487398]
[1646671116816,0.01464379,39316.0,39313.0,0.21468398]
[1646671117011,0.01464379,39316.0,39312.0,0.19327265]
[1646671117212,0.19626053,39316.0,39310.0,0.25632323]
[1646671117614,0.22239331,39315.0,39310.0,0.25632323]
[1646671117812,0.56738446,39315.0,39310.0,0.25632323]
[1646671118652,0.34499115,39315.0,39310.0,0.25632323]
[1646671118856,0.17973835,39317.0,39310.0,0.25632323]
[1646671119455,0.190824,39315.0,39310.0,0.25632323]
[1646671119655,0.190824,39315.0,39309.0,0.25632323]
[1646671120256,0.201016,39315.0,39309.0,0.25632323]
[1646671120657,0.190824,39315.0,39309.0,0.25632323]
[1646671121757,0.190824,39315.0,39308.0,0.25632323]
[1646671122006,0.190824,39315.0,39309.0,0.25632323]
[1646671122200,0.190824,39315.0,39308.0,0.25632323]
[1646671124302,0.201017,39315.0,39308.0,0.25632323]
[1646671124902,0.19494249,39312.0,39308.0,0.25632323]
[1646671125104,0.25855749,39312.0,39307.0,0.44959588]
[1646671125305,0.64413383,39311.0,39307.0,0.25632323]
[1646671125504,0.64413383,39311.0,39306.0,0.25632323]
[1646671125755,0.64413383,39311.0,39305.0,0.25632323]
[1646671125958,0.397537,39310.0,39304.0,0.25632323]
[1646671126153,0.37384283,39311.0,39303.0,0.25632323]
[1646671126355,0.37384283,39311.0,39302.0,0.25632323]
[1646671126356,0.26097282,39306.0,39302.0,0.25632323]
[1646671126758,0.26097282,39306.0,39304.0,0.20502867]
[1646671126955,0.397537,39305.0,39304.0,0.20502867]
[1646671127155,0.26097282,39306.0,39303.0,0.20502867]
[1646671127359,0.61593525,39305.0,39303.0,0.20502867]
[1646671127658,0.61593525,39305.0,39302.0,0.20502867]
[1646671128255,0.80839964,39305.0,39302.0,0.05084546]
[1646671128457,0.41086264,39305.0,39299.0,0.25632323]
[1646671128956,0.24571825,39305.0,39297.0,0.25632323]
[1646671129601,0.02532,39305.0,39297.0,0.25632323]
[1646671130502,0.27705529,39305.0,39297.0,0.25632323]
[1646671130702,0.57705529,39305.0,39297.0,0.25632323]
[1646671131103,0.27705529,39305.0,39297.0,0.25632323]
[1646671131704,0.27705529,39305.0,39296.0,0.31995123]
[1646671131908,0.27705529,39305.0,39296.0,0.51026234]
[1646671132105,0.27705529,39305.0,39296.0,0.25393911]
[1646671132705,0.27705529,39305.0,39296.0,0.51026234]
[1646671132906,0.27705529,39305.0,39295.0,0.25632323]
[1646671132907,0.722857,39304.0,39295.0,0.25632323]
[1646671133107,0.722857,39304.0,39293.0,0.4509327]
[1646671133108,0.422857,39302.0,39293.0,0.4509327]
[1646671133360,0.422857,39302.0,39293.0,0.25632323]
[1646671133554,0.397537,39300.0,39293.0,0.25632323]
[1646671133754,0.28083601,39298.0,39292.0,0.25766007]
[1646671133955,0.397537,39295.0,39292.0,0.25766007]
[1646671134159,0.063647,39295.0,39292.0,0.25766007]
[1646671134355,0.063647,39295.0,39292.0,0.11928135]
[1646671134564,0.697537,39294.0,39289.0,0.00033422]
[1646671134762,0.397537,39294.0,39289.0,0.00033422]
[1646671134956,0.23806281,39294.0,39289.0,0.00033422]
[1646671135257,0.48806281,39294.0,39289.0,0.00033422]
[1646671135457,0.40115808,39290.0,39289.0,0.00033422]
[1646671135654,0.79869508,39290.0,39288.0,0.001]
[1646671135856,0.397554,39289.0,39288.0,0.001]
[1646671136856,0.40415808,39290.0,39288.0,0.001]
[1646671137123,0.24531654,39290.0,39288.0,0.001]
[1646671137520,0.547554,39289.0,39288.0,0.001]
[1646671137719,0.647554,39289.0,39288.0,0.001]
[1646671138322,0.497554,39289.0,39288.0,0.001]
[1646671138725,0.063662,39291.0,39288.0,0.001]
[1646671139524,0.063662,39291.0,39288.0,0.00135705]
[1646671139731,0.063662,39291.0,39288.0,0.17834691]
[1646671140028,0.073862,39291.0,39288.0,0.17834691]
[1646671140327,0.073862,39291.0,39289.0,0.46924142]
[1646671140328,0.002,39291.0,39289.0,0.46924142]
[1646671140529,0.0010897,39291.0,39289.0,0.45628017]
[1646671140759,0.0010897,39291.0,39290.0,0.05]
[1646671140961,0.0010897,39291.0,39290.0,0.323985]
[1646671141159,0.0010897,39291.0,39290.0,0.55537867]
[1646671141560,0.0010897,39291.0,39290.0,0.164427]
[1646671141762,0.063634,39295.0,39290.0,0.113627]
[1646671143163,0.063634,39295.0,39290.0,0.11398404]
[1646671143961,0.063634,39295.0,39290.0,0.00035704]
[1646671143962,0.397554,39294.0,39290.0,0.00035704]
[1646671144160,0.397554,39294.0,39288.0,0.001]
[1646671144362,0.397554,39294.0,39290.0,0.00034596]
[1646671144610,0.28224662,39292.0,39290.0,0.00034596]
[1646671144810,0.60105379,39291.0,39290.0,0.00034596]
[1646671145208,0.60105379,39291.0,39288.0,0.001]
[1646671145607,0.60105379,39291.0,39289.0,0.00034597]
[1646671146010,0.60114379,39291.0,39289.0,0.00034597]
[1646671146409,0.60114379,39291.0,39288.0,0.001]
[1646671146611,0.60114379,39291.0,39288.0,0.00134597]
[1646671147209,0.60105379,39291.0,39288.0,0.00134597]
[1646671147709,0.60105379,39291.0,39288.0,0.001]
[1646671147910,0.60105379,39291.0,39288.0,0.0013335]
[1646671148111,0.90105379,39291.0,39288.0,0.0013335]
[1646671148373,0.90405379,39291.0,39288.0,0.0013335]
[1646671148969,0.90405379,39291.0,39288.0,0.001]
[1646671149170,0.97673749,39291.0,39288.0,0.0013335]
[1646671149670,0.97373749,39291.0,39288.0,0.0013335]
[1646671150074,0.97373749,39291.0,39288.0,0.001]
[1646671150272,0.397554,39286.0,39284.0,0.001]
[1646671150671,0.19785352,39285.0,39284.0,0.001]
[1646671150873,0.59540752,39285.0,39284.0,0.001]
[1646671151875,0.59540752,39285.0,39281.0,0.001]
[1646671151876,1.947554,39284.0,39281.0,0.001]
[1646671152154,0.397554,39282.0,39281.0,0.001]
[1646671152506,0.647554,39282.0,39281.0,0.001]
[1646671152713,0.697554,39282.0,39281.0,0.001]
[1646671153110,0.697554,39282.0,39273.0,0.003]
[1646671153111,1.55,39277.0,39273.0,0.003]
[1646671153313,0.697554,39276.0,39273.0,0.003]
[1646671153508,0.56669714,39276.0,39273.0,0.003]
[1646671154110,1.55,39274.0,39268.0,0.003]
[1646671154310,0.1,39273.0,39268.0,0.003]
[1646671154707,0.397554,39272.0,39268.0,0.003]
[1646671155111,0.127366,39274.0,39270.0,0.00135719]
[1646671155311,0.063683,39273.0,39270.0,0.00135719]
[1646671155509,0.073887,39273.0,39270.0,0.00135719]
[1646671155754,0.397554,39272.0,39270.0,0.00135719]
[1646671156154,0.397554,39272.0,39270.0,0.001]
[1646671156359,0.063683,39273.0,39270.0,0.001]
[1646671156555,0.397554,39272.0,39270.0,0.001]
[1646671156759,0.063683,39273.0,39270.0,0.001]
[1646671157561,0.7872,39280.0,39270.0,0.001]
[1646671157562,9e-05,39272.0,39271.0,0.58029076]
[1646671157759,9e-05,39272.0,39271.0,0.159671]
[1646671157760,3e-05,39272.0,39271.0,0.159671]
[1646671158162,3e-05,39272.0,39271.0,0.0508]
[1646671158660,3e-05,39272.0,39271.0,0.274134]
[1646671158859,3e-05,39272.0,39271.0,0.286864]
[1646671159263,3e-05,39272.0,39271.0,0.06353]
[1646671159709,3e-05,39272.0,39271.0,0.1008]
[1646671159908,3e-05,39272.0,39271.0,0.26047]
[1646671160313,3e-05,39272.0,39271.0,1.43687438]
[1646671160514,3e-05,39272.0,39271.0,2.17197438]
[1646671160712,0.00115963,39287.0,39273.0,0.84802]
[1646671160913,0.063649,39286.0,39279.0,0.6351]
[1646671161113,0.063649,39286.0,39280.0,0.510414]
[1646671161312,0.063649,39286.0,39280.0,0.62783295]
[1646671161514,0.063649,39286.0,39281.0,0.159609]
[1646671161715,0.063649,39286.0,39282.0,0.0508]
[1646671161911,0.063649,39286.0,39283.0,0.0508]
[1646671162112,0.063649,39286.0,39284.0,0.0508]
[1646671162313,0.063649,39286.0,39285.0,0.0508]
[1646671162713,0.31089047,39286.0,39285.0,0.0508]
[1646671162914,0.70844447,39286.0,39285.0,0.0508]
[1646671164176,0.61988409,39286.0,39285.0,0.0508]
[1646671164576,0.62088409,39286.0,39285.0,0.0508]
[1646671164778,0.62278368,39286.0,39285.0,0.0508]
[1646671165280,0.68643268,39286.0,39285.0,0.0508]
[1646671165680,0.68543268,39286.0,39285.0,0.0508]
[1646671166082,0.68543268,39286.0,39281.0,0.00033367]
[1646671166282,0.19982366,39282.0,39281.0,0.00033367]
[1646671166480,0.59737766,39282.0,39281.0,0.00033367]
[1646671166881,0.59737766,39282.0,39272.0,3e-05]
[1646671167134,0.010203,39285.0,39280.0,0.00033437]
[1646671167333,0.397554,39281.0,39280.0,0.00033437]
[1646671168134,0.397554,39281.0,39272.0,0.21876312]
[1646671168339,0.127342,39282.0,39279.0,0.00033437]
[1646671168534,0.397554,39281.0,39279.0,0.00033437]
[1646671168736,0.60079115,39280.0,39279.0,0.00033437]
[1646671169336,0.60079115,39280.0,39272.0,0.21876312]
[1646671169535,0.063677,39279.0,39278.0,0.00033438]
[1646671169736,0.461231,39279.0,39278.0,0.00033438]
[1646671169936,0.063677,39279.0,39278.0,0.00033438]
[1646671170536,0.063677,39279.0,39273.0,0.3]
[1646671170758,0.063677,39279.0,39277.0,0.00033435]
[1646671170963,0.063677,39279.0,39277.0,0.30033435]
[1646671171159,0.063677,39279.0,39278.0,0.25545342]
[1646671171357,0.063677,39279.0,39278.0,0.18749733]
[1646671172357,0.063677,39279.0,39277.0,0.00033435]
[1646671172559,0.064677,39279.0,39277.0,0.00033435]
[1646671172958,0.064677,39279.0,39273.0,0.004]
[1646671173158,0.064677,39279.0,39276.0,0.00033435]
[1646671174259,0.064677,39279.0,39276.0,0.00033436]
[1646671174513,0.397554,39277.0,39276.0,0.00033436]
[1646671174916,0.447554,39277.0,39276.0,0.00033436]
[1646671175316,0.447554,39277.0,39273.0,0.004]
[1646671175515,0.40009848,39276.0,39275.0,0.00033436]
[1646671175715,0.79765248,39276.0,39275.0,0.00033436]
[1646671176514,0.79765248,39276.0,39272.0,3e-05]
[1646671176515,0.55811532,39276.0,39272.0,3e-05]
[1646671176714,0.397554,39275.0,39274.0,0.00033437]
[1646671176920,0.547554,39275.0,39274.0,0.00033437]
[1646671177716,0.20054433,39269.0,39267.0,0.00034205]
[1646671177923,0.397554,39268.0,39267.0,0.00034205]
[1646671178117,0.397554,39268.0,39267.0,0.00167976]
[1646671178558,0.401554,39268.0,39267.0,0.00167976]
[1646671178770,1.55,39267.0,39263.0,0.001]
[1646671178996,0.57753465,39268.0,39256.0,0.12002338]
[1646671178997,1.57532,39265.0,39256.0,0.12002338]
[1646671179165,1.57532,39265.0,39254.0,0.30678809]
[1646671179166,1.55,39259.0,39254.0,0.30678809]
[1646671179360,1.55,39259.0,39250.0,0.002]